bitfinex-derivatives/quotes_ETHF0:USTF0_20250505
["timestamp","ask_amount","ask_price","bid_price","bid_amount"]
[1746413196664,9.5401,1800.1,1800.0,8.01305]
[1746413201273,3.0893,1800.1,1800.0,8.01305]
[1746413201469,6.1988,1800.1,1800.0,8.01305]
[1746413205476,6.1988,1800.1,1800.0,4.94205]
[1746413206369,9.4066,1800.1,1800.0,4.94205]
[1746413220981,6.1988,1800.1,1800.0,4.94205]
[1746413221178,3.2829,1800.2,1800.1,1.11099]
[1746413221385,3.2829,1800.2,1800.1,4.86299]
[1746413221788,3.2829,1800.2,1800.1,4.96199]
[1746413221981,6.2785,1800.2,1800.1,4.96199]
[1746413223086,6.2123,1800.3,1800.1,4.96199]
[1746413223087,6.2123,1800.3,1800.2,1.11093]
[1746413223282,6.2123,1800.3,1800.2,4.48603]
[1746413223482,6.0001,1800.3,1800.2,4.48603]
[1746413224186,6.0001,1800.3,1800.2,8.21803]
[1746413224692,3.2078,1800.5,1800.2,8.21803]
[1746413224693,3.2078,1800.5,1800.4,1.1108]
[1746413224886,12.7099,1800.5,1800.4,4.8628]
[1746413225285,9.5021,1800.5,1800.4,8.5948]
[1746413227293,9.5021,1800.5,1800.4,7.484]
[1746413227495,12.7099,1800.5,1800.4,8.5948]
[1746413227684,9.5021,1800.5,1800.4,8.6938]
[1746413228089,12.7099,1800.5,1800.4,8.6938]
[1746413228490,12.7099,1800.5,1800.4,4.9418]
[1746413228695,12.7099,1800.5,1800.4,8.6928]
[1746413236391,13.82064,1800.5,1800.4,8.6928]
[1746413236694,12.7099,1800.5,1800.4,8.6928]
[1746413238301,18.26423612,1800.5,1800.4,8.6928]
[1746413242304,12.7099,1800.5,1800.4,8.6928]
[1746413245600,16.41950002,1800.5,1800.4,8.6928]
[1746413250407,13.18550002,1800.5,1800.4,8.6928]
[1746413250604,6.91740002,1800.5,1800.4,8.6928]
[1746413251206,9.90380002,1800.5,1800.4,8.6928]
[1746413252707,6.91740002,1800.5,1800.4,8.6928]
[1746413255010,3.70960002,1800.5,1800.4,8.6928]
[1746413255504,3.70960002,1800.5,1800.4,13.6928]
[1746413255697,6.91740002,1800.7,1800.6,1.11068]
[1746413255901,6.91740002,1800.7,1800.6,1.94940564]
[1746413256412,6.91740002,1800.7,1800.6,5.07030564]
[1746413257410,6.91740002,1800.7,1800.6,5.07240202]
[1746413259417,3.2078,1800.7,1800.6,5.07240202]
[1746413261013,3.2078,1800.7,1800.6,5.07187669]
[1746413262914,3.2078,1800.7,1800.6,5.07186857]
[1746413264011,2.9964,1800.9,1800.8,1.11056]
[1746413264216,2.9964,1800.9,1800.8,9.32384857]
[1746413264815,2.9964,1800.9,1800.8,9.32328723]
[1746413265815,2.9964,1800.9,1800.8,9.42228723]
[1746413266315,2.9964,1800.9,1800.8,9.42226093]
[1746413266717,2.9964,1800.9,1800.8,8.68156]
[1746413267016,2.9964,1800.9,1800.8,9.42221558]
[1746413267217,5.992,1800.9,1800.8,9.42227114]
[1746413268211,5.992,1800.9,1800.8,9.42247373]
[1746413269916,5.992,1800.9,1800.8,9.42191769]
[1746413270220,7.1025,1800.9,1800.8,8.31135769]
[1746413270513,7.1025,1800.9,1800.8,9.42191769]
[1746413271411,5.992,1800.9,1800.8,9.42191769]
[1746413272514,6.91740002,1801.0,1800.9,1.1105]
[1746413272715,6.91740002,1801.0,1800.9,5.05885769]
[1746413272915,9.83560002,1801.0,1800.9,5.05885769]
[1746413273217,9.83560002,1801.0,1800.9,8.79085769]
[1746413275318,9.83560002,1801.0,1800.9,8.89025362]
[1746413275319,6.91740002,1801.0,1800.9,8.89025362]
[1746413275519,3.2078,1801.0,1800.9,8.89025362]
[1746413276921,3.2078,1801.0,1800.9,9.34252239]
[1746413277222,3.2078,1801.0,1800.9,9.34278902]
[1746413277414,3.2078,1801.0,1800.9,8.89052025]
[1746413277615,6.2967,1801.0,1800.9,8.89052025]
[1746413277823,3.0889,1801.0,1800.9,8.89052025]
[1746413278218,3.0889,1801.0,1800.9,5.68252025]
[1746413278718,3.0889,1801.0,1800.9,8.79772025]
[1746413278925,3.0889,1801.0,1800.9,8.79720192]
[1746413280530,3.0889,1801.0,1800.9,8.79701164]
[1746413281825,3.0889,1801.0,1800.9,8.79689757]
[1746413283726,3.0889,1801.0,1800.9,8.796942]
[1746413284925,3.0889,1801.0,1800.9,5.681742]
[1746413285315,12.40713,1801.0,1800.9,4.571242]
[1746413286227,11.2967,1801.0,1800.9,5.681742]
[1746413286616,6.2967,1801.0,1800.9,5.681742]
[1746413287122,6.2967,1801.0,1800.9,5.67773068]
[1746413287523,12.40713,1801.0,1800.9,4.56723068]
[1746413287722,7.40713,1801.0,1800.9,4.56723068]
[1746413288124,7.40713,1801.0,1800.9,3.831]
[1746413289126,1.1105,1800.9,1800.8,3.729]
[1746413289329,4.3196,1800.9,1800.8,3.729]
[1746413290230,4.3196,1800.9,1800.8,8.57156]
[1746413290433,3.2091,1800.9,1800.8,8.57156]
[1746413290828,4.3196,1800.9,1800.8,7.461]
[1746413291024,3.2091,1800.9,1800.8,8.57156]
[1746413291425,4.3196,1800.9,1800.8,7.461]
[1746413291927,11.05332002,1801.1,1800.9,1.11045]
[1746413292225,6.381,1801.0,1800.9,1.11045]
[1746413293033,3.1732,1801.0,1800.9,1.11045]
[1746413293238,8.72753612,1801.0,1800.9,7.99235]
[1746413296535,3.1732,1801.0,1800.9,7.99235]
[1746413299735,3.1732,1801.0,1800.9,10.93305]
[1746413300531,3.1732,1801.0,1800.9,7.99235]
[1746413302534,3.1732,1801.0,1800.9,4.84245]
[1746413303030,6.381,1801.0,1800.9,4.84245]
[1746413305534,3.1732,1801.0,1800.9,7.88405]
[1746413310939,6.381,1801.0,1800.9,4.84245]
[1746413313040,10.08517536,1801.0,1800.9,4.84245]
[1746413316242,10.08517536,1801.0,1800.9,11.08495]
[1746413317746,6.87737536,1801.0,1800.9,11.08495]
[1746413318043,3.70417536,1801.0,1800.9,11.08495]
[1746413318238,3.70417536,1801.0,1800.9,14.14605]
[1746413319845,3.1205,1801.1,1801.0,1.11043]
[1746413320044,3.1205,1801.1,1801.0,4.27023]
[1746413320246,6.0818,1801.1,1801.0,8.00223]
[1746413321446,3.70417536,1801.2,1801.1,1.11037]
[1746413321646,3.70417536,1801.2,1801.1,7.98387]
[1746413322044,6.74047536,1801.2,1801.1,7.98387]
[1746413325649,3.0363,1801.2,1801.1,7.98387]
[1746413335358,3.0363,1801.2,1801.0,4.84241]
[1746413335359,7.35441,1801.2,1801.0,4.84241]
[1746413335657,6.2274,1801.1,1801.0,7.441]
[1746413335858,9.1672,1801.1,1801.0,7.441]
[1746413336158,9.1672,1801.1,1801.0,8.55143]
[1746413338559,3.0187,1801.1,1801.0,8.55143]
[1746413338754,3.0187,1801.1,1801.0,11.57823]
[1746413341661,3.0187,1801.1,1801.0,8.55143]
[1746413341861,6.0638,1801.1,1801.0,8.55143]
[1746413342363,3.0187,1801.1,1801.0,11.77763]
[1746413342861,9.94567536,1801.2,1801.1,1.11037]
[1746413343250,6.74927536,1801.2,1801.1,1.11037]
[1746413343455,6.74927536,1801.2,1801.1,4.26527]
[1746413343657,3.70417536,1801.2,1801.1,4.26527]
[1746413343863,3.1883,1801.3,1801.2,1.11031]
[1746413344062,3.1883,1801.3,1801.2,7.99721]
[1746413346467,6.1681,1801.3,1801.2,7.99721]
[1746413346966,6.1681,1801.3,1801.2,3.732]
[1746413347264,6.1681,1801.3,1801.2,4.84231]
[1746413347566,3.70417536,1801.4,1801.3,1.11025]
[1746413347867,2.9798,1801.5,1801.4,1.11019]
[1746413348258,2.9798,1801.5,1801.4,4.84219]
[1746413349965,2.9798,1801.5,1801.4,7.83429]
[1746413352967,2.9798,1801.5,1801.4,4.84219]
[1746413353657,2.9798,1801.5,1801.4,7.85039]
[1746413354566,6.2276,1801.6,1801.5,1.11013]
[1746413354767,6.2276,1801.6,1801.5,4.11833]
[1746413355161,9.3045,1801.6,1801.5,7.85033]
[1746413358374,6.0905,1801.6,1801.5,7.85033]
[1746413358870,3.2174,1801.7,1801.6,1.11006]
[1746413359072,3.2174,1801.7,1801.6,7.96546]
[1746413359273,6.3561,1801.7,1801.6,7.96546]
[1746413360570,3.2078,1801.8,1801.7,1.11]
[1746413360768,3.2078,1801.8,1801.7,4.2564]
[1746413360970,6.3465,1801.8,1801.7,4.2564]
[1746413361165,6.3465,1801.8,1801.7,7.9884]
[1746413363874,6.3465,1801.8,1801.7,4.842]
[1746413366876,6.3465,1801.8,1801.7,3.732]
[1746413367067,7.45644,1801.8,1801.7,3.732]
[1746413367774,6.3465,1801.8,1801.7,4.842]
[1746413368076,7.45644,1801.8,1801.7,3.732]
[1746413368374,6.3465,1801.8,1801.7,4.842]
[1746413368878,6.35349172,1801.8,1801.7,4.842]
[1746413370576,7.46343172,1801.8,1801.7,4.842]
[1746413370769,6.35349172,1801.8,1801.7,4.842]
[1746413371175,7.46343172,1801.8,1801.7,3.732]
[1746413371372,6.35349172,1801.8,1801.7,4.842]
[1746413372470,7.46343172,1801.8,1801.7,3.732]
[1746413373877,7.46343172,1801.8,1801.7,4.842]
[1746413375373,7.46343172,1801.8,1801.7,3.732]
[1746413376976,11.16760708,1801.8,1801.7,3.732]
[1746413377473,16.16760708,1801.8,1801.7,3.732]
[1746413377979,16.16760708,1801.8,1801.4,3.7]
[1746413377980,1.11013,1801.5,1801.4,3.7]
[1746413378178,4.31793,1801.5,1801.4,3.732]
[1746413378973,7.27793,1801.5,1801.4,3.732]
[1746413380484,12.83226612,1801.5,1801.4,3.732]
[1746413383280,15.96206612,1801.5,1801.4,3.732]
[1746413383680,14.10962873,1801.5,1801.4,3.732]
[1746413387683,15.96206612,1801.5,1801.4,3.732]
[1746413389786,17.80985866,1801.5,1801.4,3.732]
[1746413394391,14.60205866,1801.5,1801.4,3.732]
[1746413394883,17.80985866,1801.5,1801.4,3.732]
[1746413395085,14.60205866,1801.5,1801.4,3.732]
[1746413395290,17.80985866,1801.5,1801.4,3.732]
[1746413397292,22.80985866,1801.5,1801.4,2.56905]
[1746413397591,23.63385866,1801.5,1801.4,2.56905]
[1746413398091,24.06964554,1801.5,1801.4,2.56905]
[1746413398291,23.63385866,1801.5,1801.4,2.56905]
[1746413399092,1.11037,1801.1,1801.0,3.693]
[1746413399292,4.31817,1801.1,1801.0,3.693]
[1746413400089,4.31817,1801.1,1801.0,7.425]
[1746413401090,4.31817,1801.1,1801.0,10.3705]
[1746413406097,1.11037,1801.1,1801.0,10.3705]
[1746413406297,4.31817,1801.1,1801.0,10.3705]
[1746413408097,4.31817,1801.1,1801.0,11.48093]
[1746413408485,3.2078,1801.1,1801.0,11.48093]
[1746413408693,6.90489328,1801.3,1801.2,1.11031]
[1746413409098,8.01514328,1801.3,1801.2,3.732]
[1746413409291,8.01514328,1801.3,1801.2,7.72811]
[1746413409491,6.90489328,1801.3,1801.2,10.64161]
[1746413410400,3.2078,1801.3,1801.2,10.64161]
[1746413414290,4.31805,1801.3,1801.2,6.6178]
[1746413414496,13.48555,1801.3,1801.2,3.732]
[1746413416095,10.33585,1801.3,1801.2,4.84231]
[1746413416299,3.2078,1801.3,1801.2,10.78391]
[1746413416801,4.31805,1801.3,1801.2,10.78391]
[1746413417002,7.34005,1801.3,1801.2,10.78391]
[1746413417400,11.03714328,1801.3,1801.2,10.78391]
[1746413417903,11.03714328,1801.3,1801.2,9.6736]
[1746413418105,14.07434328,1801.3,1801.2,6.765]
[1746413418902,14.07434328,1801.3,1801.2,3.732]
[1746413420904,22.76976051,1801.3,1801.2,3.732]
[1746413421406,22.76976051,1801.3,1801.2,1.23796]
[1746413421904,22.76976051,1801.3,1801.2,0.12437]
[1746413422104,1.11056,1800.8,1800.7,3.693]
[1746413422299,4.31836,1800.8,1800.7,3.693]
[1746413422504,3.2078,1800.8,1800.7,4.80362]
[1746413423006,9.1937,1800.8,1800.7,4.80362]
[1746413423307,9.1937,1800.8,1800.7,8.53562]
[1746413424609,9.1937,1801.0,1800.9,1.1105]
[1746413425109,3.2078,1801.0,1800.9,4.8425]
[1746413425303,5.824,1801.1,1801.0,1.11043]
[1746413425501,15.08274838,1801.1,1801.0,7.93843]
[1746413426107,15.08274838,1801.1,1801.0,11.67043]
[1746413427016,17.92044838,1801.1,1801.0,11.67043]
[1746413428009,15.08274838,1801.1,1801.0,11.67043]
[1746413428410,5.824,1801.1,1801.0,11.67043]
[1746413430011,11.17263492,1801.2,1801.1,1.11037]
[1746413430209,14.30933492,1801.2,1801.1,3.686]
[1746413431909,8.02423492,1801.2,1801.1,3.686]
[1746413432105,8.02423492,1801.2,1801.1,10.80137]
[1746413432305,9.99502492,1801.2,1801.1,10.80137]
[1746413432701,11.10533492,1801.2,1801.1,10.80137]
[1746413432906,11.10533492,1801.2,1801.1,9.691]
[1746413433312,11.10533492,1801.2,1801.1,10.80137]
[1746413433514,14.06663492,1801.2,1801.1,10.80137]
[1746413433711,14.06663492,1801.2,1801.1,9.691]
[1746413435114,14.06663492,1801.2,1801.1,6.6193]
[1746413435315,15.91969738,1801.2,1801.1,3.686]
[1746413438117,15.91969738,1801.2,1801.1,4.79637]
[1746413438316,14.80938738,1801.2,1801.1,4.79637]
[1746413438518,15.91969738,1801.2,1801.1,4.79637]
[1746413439818,15.91969738,1801.2,1801.1,3.686]
[1746413444522,15.91969738,1801.2,1801.1,4.79637]
[1746413444825,10.36051,1801.2,1801.1,4.79637]
[1746413445624,3.2078,1801.2,1801.1,4.79637]
[1746413445820,3.2078,1801.2,1801.1,18.98017]
[1746413447621,3.2078,1801.2,1801.1,13.98017]
[1746413449023,3.21323981,1801.2,1801.1,13.98017]
[1746413462633,3.2078,1801.2,1801.1,13.98017]
[1746413462840,6.91492755,1801.4,1801.3,1.11025]
[1746413463241,6.91492755,1801.4,1801.3,4.84225]
[1746413464640,3.2078,1801.4,1801.3,4.84225]
[1746413465241,3.2078,1801.4,1801.3,5.27652287]
[1746413466141,5.8701,1801.5,1801.4,1.11019]
[1746413466342,5.8701,1801.5,1801.4,4.78819]
[1746413466943,5.8701,1801.5,1801.4,7.83559]
[1746413467235,5.8701,1801.5,1801.4,11.56759]
[1746413474242,5.8701,1801.5,1801.4,8.52019]
[1746413484244,2.8981,1801.5,1801.4,8.52019]
[1746413492454,2.8981,1801.5,1801.4,11.52739]
[1746413493358,2.8046,1801.6,1801.5,1.11013]
[1746413493558,2.8046,1801.6,1801.5,4.05463]
[1746413494158,2.8046,1801.6,1801.5,7.78663]
[1746413502760,5.6021,1801.7,1801.5,7.78663]
[1746413502960,6.91492755,1801.8,1801.7,1.11]
[1746413503160,6.91492755,1801.8,1801.7,8.511]
[1746413503363,9.94942755,1801.8,1801.7,8.511]
[1746413504163,6.2423,1801.8,1801.7,8.511]
[1746413505162,3.0345,1801.8,1801.7,8.511]
[1746413506666,5.7968,1801.8,1801.7,8.511]
[1746413513273,5.7968,1801.8,1801.7,3.732]
[1746413513274,10.7968,1801.8,1801.7,3.732]
[1746413513574,5.7968,1801.8,1801.7,4.842]
[1746413518572,9.50392755,1801.8,1801.7,4.842]
[1746413522774,16.17455887,1801.8,1801.7,3.732]
[1746413522970,16.17455887,1801.8,1801.7,4.842]
[1746413523880,15.06461887,1801.8,1801.7,4.842]
[1746413524771,16.17455887,1801.8,1801.7,4.842]
[1746413524972,16.17455887,1801.8,1801.7,3.732]
[1746413525175,15.06461887,1801.8,1801.7,4.842]
[1746413525981,11.35749132,1801.8,1801.7,4.842]
[1746413529678,8.32299132,1801.8,1801.7,4.842]
[1746413529976,8.32299132,1801.8,1801.7,10.6819]
[1746413530180,5.56069132,1801.8,1801.7,10.6819]
[1746413532783,9.66027477,1801.9,1801.8,1.10994]
[1746413532978,9.66027477,1801.9,1801.8,3.88304]
[1746413533281,9.66027477,1801.9,1801.8,7.61504]
[1746413537487,6.45247477,1801.9,1801.8,7.61504]
[1746413540390,2.23137477,1801.9,1801.8,7.61504]
[1746413540689,5.56069132,1802.0,1801.9,1.10988]
[1746413540895,5.56069132,1802.0,1801.9,13.25538]
[1746413541196,5.56069132,1802.0,1801.9,16.98738]
[1746413542693,3.2078,1802.1,1802.0,1.10982]
[1746413542889,3.2078,1802.1,1802.0,4.02932]
[1746413543089,3.2078,1802.1,1802.0,7.76132]
[1746413546202,5.56069132,1802.2,1802.1,1.10976]
[1746413546395,5.56069132,1802.2,1802.1,6.85726]
[1746413547002,6.0174,1802.3,1802.2,1.10969]
[1746413547201,6.0174,1802.3,1802.2,11.27859]
[1746413552003,2.9724,1802.4,1802.3,1.10963]
[1746413552204,2.9724,1802.4,1802.3,10.61543]
[1746413552596,5.9558,1802.4,1802.3,7.64543]
[1746413552798,5.9558,1802.4,1802.3,4.84163]
[1746413553204,11.65279132,1802.5,1802.4,1.10957]
[1746413553399,17.34669132,1802.5,1802.4,1.10957]
[1746413554299,17.34669132,1802.5,1802.4,4.84157]
[1746413554705,18.45620132,1802.5,1802.4,4.84157]
[1746413555103,17.34669132,1802.5,1802.4,4.84157]
[1746413555696,11.786,1802.5,1802.4,4.84157]
[1746413555999,12.89551,1802.5,1802.4,3.732]
[1746413556204,12.89551,1802.5,1802.4,4.84157]
[1746413556610,11.786,1802.5,1802.4,4.84157]
[1746413557105,12.89551,1802.5,1802.4,4.84157]
[1746413557306,11.786,1802.5,1802.4,4.84157]
[1746413559507,12.89551,1802.5,1802.4,4.84157]
[1746413561208,12.89551,1802.5,1802.4,3.732]
[1746413562111,12.89551,1802.5,1802.4,4.84157]
[1746413565014,12.89551,1802.5,1802.4,3.732]
[1746413567815,9.68771,1802.5,1802.4,3.732]
[1746413568009,12.89551,1802.5,1802.4,3.732]
[1746413573620,26.13175984,1802.5,1802.4,3.732]
[1746413579224,31.13175984,1802.5,1802.4,1.50062523]
[1746413579722,26.13175984,1802.5,1802.4,1.50062523]
[1746413580318,1.10969,1802.2,1802.1,3.652]
[1746413580620,4.31749,1802.2,1802.1,3.652]
[1746413580821,3.2078,1802.4,1802.3,1.10963]
[1746413581021,4.31739,1802.4,1802.2,6.83655]
[1746413581220,12.97749,1802.4,1802.3,3.732]
[1746413581726,12.97749,1802.4,1802.3,6.5135]
[1746413582719,18.53606685,1802.4,1802.3,6.5135]
[1746413583226,18.53606685,1802.4,1802.3,7.62313]
[1746413583728,18.53606685,1802.4,1802.3,6.5135]
[1746413584228,17.42647685,1802.4,1802.3,7.62313]
[1746413584429,14.64397685,1802.4,1802.3,7.62313]
[1746413587733,11.73587685,1802.4,1802.3,7.62313]
[1746413587932,8.76637685,1802.4,1802.3,7.62313]
[1746413589034,5.55857685,1802.4,1802.3,7.62313]
[1746413591436,5.55857685,1802.4,1802.3,12.62313]
[1746413592245,5.55857685,1802.4,1802.3,13.36386428]
[1746413593244,5.55857685,1802.4,1802.3,13.36525467]
[1746413593441,5.55857685,1802.4,1802.3,13.36505388]
[1746413593640,5.55857685,1802.4,1802.3,8.36518697]
[1746413593935,5.55857685,1802.4,1802.3,8.36498168]
[1746413594240,5.55857685,1802.4,1802.3,13.36483532]
[1746413594434,4.37265685,1802.4,1802.3,13.36483532]
[1746413594741,7.41224984,1802.5,1802.4,1.10957]
[1746413594942,7.41224984,1802.5,1802.4,10.98747532]
[1746413595236,3.2078,1802.6,1802.5,1.10951]
[1746413595444,3.2078,1802.6,1802.5,7.41410284]
[1746413596242,3.2078,1802.6,1802.5,11.14610284]
[1746413596541,5.56319474,1802.7,1802.6,1.10945]
[1746413596839,5.56319474,1802.7,1802.6,4.63000346]
[1746413597043,5.56319474,1802.7,1802.6,7.36660346]
[1746413597241,5.56319474,1802.7,1802.6,7.80799581]
[1746413598343,3.2078,1803.0,1802.9,1.10926]
[1746413598545,16.26914984,1803.2,1803.1,1.10914]
[1746413598744,16.26914984,1803.2,1803.1,1.84981935]
[1746413599043,17.37822984,1803.2,1803.1,0.74067935]
[1746413599244,20.16092984,1803.2,1803.1,0.74067935]
[1746413600345,1.10914,1803.1,1803.0,3.732]
[1746413600542,3.88834,1803.1,1803.0,4.4718214]
[1746413600845,8.88834,1803.1,1803.0,4.4718214]
[1746413601142,14.71234,1803.1,1803.0,3.14e-06]
[1746413602142,1.10938,1802.8,1802.6,3.644]
[1746413602446,5.6831,1802.7,1802.6,3.644]
[1746413602648,8.4761,1802.7,1802.6,4.38197808]
[1746413602944,9.58549,1802.7,1802.6,4.38197808]
[1746413603845,9.58549,1802.7,1802.6,4.38205173]
[1746413604045,1.10945,1802.6,1802.5,3.732]
[1746413604248,7.11025,1802.6,1802.5,4.47026496]
[1746413604446,7.11025,1802.6,1802.5,3.732]
[1746413605550,17.93425,1802.6,1802.5,2.5501]
[1746413605944,15.14125,1802.6,1802.5,2.5501]
[1746413606140,10.14125,1802.6,1802.5,2.5501]
[1746413606749,15.90335,1802.6,1802.5,2.5501]
[1746413606945,20.90335,1802.6,1802.5,2.5501]
[1746413607249,1.10967,1802.3,1802.1,4.75375]
[1746413607451,5.6747,1802.2,1802.1,3.644]
[1746413607653,8.6505,1802.2,1802.1,5.4933128]
[1746413607950,8.6505,1802.2,1802.1,4.3835528]
[1746413608151,9.76019,1802.2,1802.1,4.3835528]
[1746413608843,3.2078,1802.3,1802.1,4.3835528]
[1746413609049,3.2078,1802.3,1802.2,0.7395528]
[1746413609455,4.31743,1802.3,1802.2,0.73939254]
[1746413609647,10.04363,1802.3,1802.2,0.73939254]
[1746413610144,8.934,1802.3,1802.2,4.47139254]
[1746413610650,10.04363,1802.3,1802.2,4.47139254]
[1746413611150,10.04363,1802.3,1802.2,4.47214371]
[1746413611550,8.934,1802.3,1802.2,4.47214371]
[1746413611950,10.04363,1802.3,1802.2,4.47214371]
[1746413616648,10.04363,1802.3,1802.2,4.4719111]
[1746413617354,10.04363,1802.3,1802.2,4.47190413]
[1746413618356,10.04363,1802.3,1802.2,4.47183654]
[1746413619559,8.934,1802.3,1802.2,4.47183654]
[1746413619961,8.934,1802.3,1802.2,5.58152654]
[1746413620459,8.934,1802.3,1802.2,11.12362654]
[1746413621160,8.934,1802.3,1802.2,11.1234782]
[1746413621358,10.04363,1802.3,1802.2,10.0137882]
[1746413621861,8.934,1802.3,1802.2,11.1234782]
[1746413622260,8.934,1802.3,1802.2,11.12339442]
[1746413623164,5.7262,1802.3,1802.2,11.12339442]
[1746413623963,5.7262,1802.3,1802.2,11.12349683]
[1746413625564,6.83583,1802.3,1802.2,11.12349683]
[1746413625755,6.83583,1802.3,1802.2,11.12361562]
[1746413625952,5.7262,1802.3,1802.2,11.12361562]
[1746413626764,6.83583,1802.3,1802.2,10.01392562]
[1746413627158,10.04363,1802.3,1802.2,10.01392562]
[1746413627565,10.04363,1802.3,1802.2,10.01412045]
[1746413628665,10.04363,1802.3,1802.2,11.12381045]
[1746413628862,3.2078,1802.3,1802.2,11.12381045]
[1746413629068,1.10959,1802.4,1802.2,11.12377045]
[1746413629368,4.31735,1802.5,1802.3,3.64652334]
[1746413629566,7.02295,1802.5,1802.4,3.47472334]
[1746413630063,7.02295,1802.5,1802.4,7.20672334]
[1746413630264,7.02295,1802.5,1802.4,4.47242334]
[1746413631064,12.02295,1802.5,1802.4,4.47242334]
[1746413631268,7.02295,1802.5,1802.4,4.47242334]
[1746413632762,7.02295,1802.5,1802.4,3.732]
[1746413633368,7.02295,1802.5,1802.4,4.44599508]
[1746413634862,7.02295,1802.5,1802.4,4.44616772]
[1746413638482,7.02295,1802.5,1802.4,4.44573218]
[1746413641185,12.84695,1802.5,1802.4,0.71373218]
[1746413641585,1.10963,1802.3,1802.2,5.5312]
[1746413641785,4.31743,1802.3,1802.2,6.24542725]
[1746413642187,4.31743,1802.3,1802.2,9.97742725]
[1746413642377,9.86673,1802.3,1802.2,9.97742725]
[1746413643186,9.86673,1802.3,1802.2,3.21953725]
[1746413643590,20.69073,1802.3,1802.2,0.48977725]
[1746413643885,20.69073,1802.3,1802.2,7.25e-06]
[1746413644086,1.10988,1801.9,1801.8,3.634]
[1746413644288,4.31768,1801.9,1801.8,3.634]
[1746413644490,1.10994,1801.8,1801.7,2.9242]
[1746413644681,1.10994,1801.8,1801.7,6.5582]
[1746413645089,1.10994,1801.8,1801.7,10.2902]
[1746413645288,3.87444,1801.8,1801.7,10.2902]
[1746413647689,7.08224,1801.8,1801.7,10.2902]
[1746413647886,7.08224,1801.8,1801.7,3.732]
[1746413648285,1.11013,1801.5,1801.4,9.099]
[1746413649089,1.11013,1801.5,1801.4,12.831]
[1746413649991,3.81633,1801.5,1801.4,12.831]
[1746413653500,3.81633,1801.5,1801.4,10.1322]
[1746413653690,3.81633,1801.5,1801.4,3.732]
[1746413655899,7.02413,1801.5,1801.4,3.732]
[1746413657192,7.02413,1801.5,1801.4,2.59284]
[1746413657393,7.02413,1801.5,1801.4,0.14393]
[1746413657988,1.11037,1801.1,1801.0,5.7249]
[1746413658194,4.31817,1801.1,1801.0,3.732]
[1746413658695,10.19287,1801.1,1801.0,3.732]
[1746413658895,12.91427,1801.1,1801.0,3.732]
[1746413661707,18.73827,1801.1,1801.0,3.732]
[1746413666606,15.77877,1801.1,1801.0,3.732]
[1746413666808,10.14217,1801.1,1801.0,9.6453]
[1746413667508,3.2078,1801.1,1801.0,14.6453]
[1746413667708,3.69106301,1801.5,1801.0,14.6453]
[1746413667709,4.31809,1801.3,1801.0,15.75573]
[1746413667905,4.31809,1801.3,1801.1,2.9545]
[1746413668103,4.31809,1801.3,1801.2,6.4631]
[1746413668811,4.31809,1801.3,1801.2,3.637]
[1746413669209,4.31809,1801.3,1801.2,7.369]
[1746413669607,7.23049,1801.3,1801.2,7.369]
[1746413673605,4.31809,1801.3,1801.2,10.3376]
[1746413676807,7.26869,1801.3,1801.2,10.3376]
[1746413682820,4.31809,1801.3,1801.2,10.3376]
[1746413683118,1.11025,1801.3,1801.2,10.3376]
[1746413683307,2.9696,1801.4,1801.2,10.3376]
[1746413683506,1.11024,1801.4,1801.3,5.559]
[1746413684212,1.11024,1801.4,1801.3,9.291]
[1746413688534,3.88884,1801.4,1801.3,9.291]
[1746413688829,9.70854,1801.4,1801.3,9.291]
[1746413690326,9.70854,1801.4,1801.3,6.485]
[1746413691431,9.70854,1801.4,1801.3,3.732]
[1746413693734,13.39960301,1801.4,1801.3,3.732]
[1746413694640,16.60740301,1801.4,1801.3,3.732]
[1746413698247,13.39960301,1801.4,1801.3,3.732]
[1746413698540,16.60740301,1801.4,1801.3,3.732]
[1746413700947,18.46840765,1801.4,1801.3,3.732]
[1746413710951,20.32858984,1801.4,1801.3,3.732]
[1746413718861,22.17508838,1801.4,1801.3,3.732]
[1746413719652,13.57678838,1801.4,1801.3,3.732]
[1746413719847,13.57678838,1801.4,1801.3,6.5161]
[1746413721965,4.31804,1801.4,1801.3,6.5161]
[1746413722152,4.31804,1801.4,1801.3,7.62635]
[1746413722153,3.2078,1801.4,1801.3,7.62635]
[1746413722458,7.42606716,1801.5,1801.3,16.25435]
[1746413722658,8.53621716,1801.5,1801.4,8.401]
[1746413723160,8.53621716,1801.5,1801.4,12.133]
[1746413725063,7.42606716,1801.5,1801.4,18.24319]
[1746413725365,7.42606716,1801.5,1801.4,18.68124449]
[1746413725559,5.56751065,1801.5,1801.4,18.68124449]
[1746413726562,5.56751065,1801.5,1801.4,13.68124449]
[1746413727759,5.56751065,1801.5,1801.4,13.24319]
[1746413728361,5.56751065,1801.5,1801.4,13.69727576]
[1746413728959,5.56751065,1801.5,1801.4,13.24319]
[1746413729768,7.01131,1801.7,1801.5,1.11013]
[1746413729969,5.9013,1801.7,1801.6,6.4934]
[1746413730264,5.9013,1801.7,1801.6,9.2114]
[1746413730566,5.9013,1801.7,1801.6,10.32146]
[1746413730865,7.0113,1801.7,1801.6,10.32146]
[1746413731167,3.8035,1801.7,1801.6,10.32146]
[1746413731366,7.0113,1801.7,1801.6,10.32146]
[1746413731560,5.9013,1801.7,1801.6,10.32146]
[1746413732267,7.0113,1801.7,1801.6,10.32146]
[1746413733368,5.9013,1801.7,1801.6,10.32146]
[1746413733669,7.0113,1801.7,1801.6,9.2114]
[1746413733868,9.9869,1801.7,1801.6,9.2114]
[1746413734371,9.9869,1801.7,1801.6,10.32146]